bitfinex/quotes_SOLUSD_20240711
["timestamp","ask_amount","ask_price","bid_price","bid_amount"]
[1720707680862,0.85973867,140.79,140.71,17.7659]
[1720707681068,7.1035,140.78,140.72,7.1061]
[1720707681240,7.1023,140.8,140.74,7.105]
[1720707681441,7.1029,140.79,140.74,7.105]
[1720707681649,0.85973867,140.8,140.74,7.105]
[1720707681857,0.85973867,140.8,140.71,17.7659]
[1720707682286,7.1033,140.78,140.73,7.1057]
[1720707682984,6.0802,140.81,140.74,24.868]
[1720707682985,7.1026,140.8,140.74,24.868]
[1720707683146,7.1026,140.8,140.74,17.7632]
[1720707683147,7.96203867,140.8,140.74,17.7632]
[1720707683348,0.85973867,140.79,140.71,24.8735]
[1720707683696,0.85973867,140.79,140.71,17.7668]
[1720707683865,7.1038,140.77,140.71,24.8734]
[1720707684062,0.85973867,140.76,140.71,24.8735]
[1720707684397,7.96413867,140.76,140.71,24.8735]
[1720707684673,0.85973867,140.75,140.69,7.1076]
[1720707684882,7.105,140.75,140.69,7.1076]
[1720707685061,7.105,140.75,140.7,7.1072]
[1720707685268,0.85973867,140.79,140.69,7.1078]
[1720707685570,0.85973867,140.79,140.69,7.1077]
[1720707685774,7.1048,140.75,140.69,7.1078]
[1720707685966,7.1048,140.75,140.7,7.1072]
[1720707686284,0.85973867,140.74,140.69,7.1077]
[1720707686776,7.1053,140.74,140.69,7.1076]
[1720707686973,7.1047,140.76,140.7,7.1068]
[1720707687357,0.85973867,140.75,140.68,24.8785]
[1720707687852,7.1053,140.74,140.69,7.1075]
[1720707688188,7.1053,140.74,140.68,24.8787]
[1720707688621,7.1053,140.74,140.69,7.1076]
[1720707688884,7.1049,140.75,140.69,7.1077]
[1720707689197,0.85973867,140.77,140.71,17.7665]
[1720707689367,7.1053,140.74,140.68,17.7704]
[1720707689769,17.7577,140.79,140.68,17.7704]
[1720707689770,7.1047,140.76,140.7,7.1072]
[1720707690363,7.96453867,140.75,140.7,7.1072]
[1720707690578,7.1053,140.74,140.69,7.1074]
[1720707691281,7.1049,140.75,140.7,7.1071]
[1720707691465,7.1071,140.71,140.65,7.1093]
[1720707691652,7.1071,140.71,140.66,7.1092]
[1720707691653,0.85973867,140.7,140.66,7.1092]
[1720707691867,7.96723867,140.7,140.65,7.1097]
[1720707692396,0.85973867,140.7,140.64,17.7747]
[1720707692566,0.85973867,140.69,140.61,18.65455836]
[1720707692799,6.5326,140.72,140.61,18.65455836]
[1720707692800,0.85973867,140.71,140.61,18.65455836]
[1720707693078,7.1079,140.69,140.64,7.1103]
[1720707693279,7.96803867,140.68,140.63,7.1107]
[1720707693462,0.85973867,140.68,140.63,17.7764]
[1720707693668,7.1074,140.7,140.65,7.1094]
[1720707693860,0.85973867,140.69,140.65,7.1094]
[1720707694381,7.1084,140.68,140.63,24.8872]
[1720707694596,0.85973867,140.67,140.63,24.8872]
[1720707694878,0.85973867,140.67,140.63,17.7764]
[1720707695075,7.1079,140.69,140.64,7.1103]
[1720707695270,7.1079,140.69,140.63,17.7764]
[1720707695271,7.96813867,140.68,140.63,24.8871]
[1720707695895,0.85973867,140.68,140.64,7.1103]
[1720707696078,0.85973867,140.68,140.65,7.1097]
[1720707696372,0.85973867,140.68,140.63,17.7764]
[1720707696593,7.1077,140.7,140.65,7.1098]
[1720707696768,7.96663867,140.71,140.66,7.544398]
[1720707696970,7.96703867,140.7,140.65,24.8836]
[1720707697170,7.1087,140.68,140.63,7.1108]
[1720707697369,0.85973867,140.67,140.63,7.1108]
[1720707697588,7.1103,140.64,140.61,0.87545836]
[1720707697804,0.85973867,140.63,140.61,0.87545836]
[1720707698086,7.1113,140.62,140.61,0.87545836]
[1720707699693,7.1113,140.62,140.54,17.7876]
[1720707699694,6.4069,140.61,140.54,7.1152]
[1720707699875,6.4069,140.61,140.5,100.0]
[1720707699876,7.1133,140.58,140.53,24.905]
[1720707700388,7.1133,140.58,140.53,17.7893]
[1720707700598,7.1147,140.56,140.49,17.7938]
[1720707700806,7.1139,140.57,140.51,17.7914]
[1720707700967,7.97273867,140.59,140.54,7.1153]
[1720707701175,0.85973867,140.59,140.51,7.1168]
[1720707701367,7.1149,140.55,140.5,17.7928]
[1720707701569,7.1145,140.56,140.51,7.1168]
[1720707701769,0.85973867,140.55,140.51,7.1168]
[1720707702133,7.1144,140.56,140.52,17.7901]
[1720707702392,0.85973867,140.55,140.49,17.7942]
[1720707702591,0.85973867,140.58,140.5,7.1174]
[1720707702803,7.1154,140.54,140.5,7.1173]
[1720707703006,7.1139,140.57,140.52,7.1162]
[1720707703183,0.85973867,140.56,140.48,17.7953]
[1720707703386,0.85973867,140.59,140.46,35.5957]
[1720707703731,0.85973867,140.59,140.5,17.7928]
[1720707703867,17.7841,140.58,140.47,18.6301175]
[1720707704068,7.1148,140.56,140.5,7.1172]
[1720707704332,7.1162,140.53,140.49,17.7943]
[1720707704490,0.85973867,140.52,140.49,17.7943]
[1720707704890,0.85973867,140.57,140.5,0.83573692]
[1720707705118,0.85973867,140.57,140.53,7.1154]
[1720707705416,16.1891,140.6,140.56,7.1141]
[1720707705417,0.85973867,140.59,140.56,7.1141]
[1720707705719,0.85973867,140.59,140.5,17.7933]
[1720707705918,0.85973867,140.59,140.53,7.1159]
[1720707706094,7.114,140.57,140.52,24.9069]
[1720707706318,17.04883867,140.6,140.58,7.1133]
[1720707706494,6.4069,140.61,140.59,7.1128]
[1720707706747,6.4069,140.61,140.58,7.1132]
[1720707707025,6.4069,140.61,140.59,7.1127]
[1720707707432,0.85973867,140.64,140.6,7.1123]
[1720707707631,16.3494,140.65,140.6,17.7801]
[1720707707798,6.96223867,140.66,140.62,17.778]
[1720707708000,8.47891726,140.69,140.64,7.1101]
[1720707708001,7.96803867,140.68,140.64,7.1101]
[1720707708201,7.96823867,140.68,140.62,17.778]
[1720707708744,0.85973867,140.68,140.64,7.1099]
[1720707708928,0.85973867,140.68,140.63,7.1107]
[1720707709101,8.47891726,140.69,140.62,17.778]
[1720707709102,7.1093,140.66,140.62,17.778]
[1720707709304,7.96863867,140.67,140.62,24.8893]
[1720707709496,7.1093,140.66,140.61,7.1117]
[1720707709702,7.96863867,140.67,140.62,7.1113]
[1720707710001,7.96813867,140.68,140.63,7.1107]
[1720707710202,0.85973867,140.67,140.61,17.7788]
[1720707710402,0.85973867,140.67,140.58,17.7833]
[1720707711204,7.1122,140.61,140.56,7.1143]
[1720707711408,0.85973867,140.6,140.56,8.53693824]
[1720707711724,0.85973867,140.6,140.56,7.1143]
[1720707711725,6.5807,140.59,140.56,7.1143]
[1720707712111,6.5807,140.59,140.55,17.7864]
[1720707712442,13.6935,140.59,140.55,17.7864]
[1720707712601,6.5807,140.59,140.55,17.7864]
[1720707712814,0.85973867,140.58,140.49,17.7943]
[1720707713100,0.85973867,140.58,140.51,7.1168]
[1720707713312,7.1139,140.57,140.49,17.7943]
[1720707713507,6.5807,140.59,140.49,17.7943]
[1720707713742,0.85973867,140.58,140.51,7.1169]
[1720707713924,0.85973867,140.58,140.54,7.1153]
[1720707714096,0.85973867,140.57,140.52,17.7908]
[1720707714302,0.85973867,140.58,140.48,17.7955]
[1720707714511,0.85973867,140.57,140.52,7.1162]
[1720707714715,7.44043867,140.59,140.47,0.8333175]
[1720707714913,0.85973867,140.58,140.53,17.7887]
[1720707715125,7.1144,140.56,140.49,24.9119]
[1720707715330,0.85973867,140.58,140.49,17.7944]
[1720707715556,6.5807,140.59,140.53,24.9053]
[1720707716127,0.85973867,140.58,140.48,17.7952]
[1720707716432,0.85973867,140.58,140.47,0.8333175]
[1720707716614,0.85973867,140.58,140.49,7.1175]
[1720707716928,0.85973867,140.58,140.5,0.70759523]
[1720707717311,7.115,140.55,140.47,7.9520175]
[1720707717518,0.85973867,140.54,140.47,0.8333175]
[1720707717837,7.1166,140.52,140.47,0.8333175]
[1720707718010,7.1175,140.5,140.47,0.8333175]
[1720707718210,7.1164,140.52,140.47,0.8333175]
[1720707718406,0.85973867,140.51,140.47,0.8333175]
[1720707719149,6.6356,140.5,140.42,17.8033]
[1720707719337,15.0,140.59,140.39,100.0]
[1720707719338,0.85973867,140.54,140.52,17.7906]
[1720707719508,0.85973867,140.6,140.47,17.7961]
[1720707719711,18.64113867,140.6,140.5,7.1174]
[1720707719944,18.64113867,140.6,140.48,7.1183]
[1720707720241,6.5638,140.55,140.47,17.7961]
[1720707720424,0.85973867,140.54,140.47,17.7961]
[1720707720945,0.85973867,140.58,140.52,7.116]
[1720707721153,7.1153,140.55,140.49,17.7946]
[1720707721314,7.1165,140.52,140.46,7.119]
[1720707721508,7.97673867,140.51,140.45,17.799]
[1720707721737,0.85973867,140.56,140.46,7.1192]
[1720707721946,0.85973867,140.56,140.45,17.799]
[1720707721947,0.85973867,140.56,140.45,7.1198]
[1720707722317,0.85973867,140.56,140.44,17.8011]
[1720707722643,7.117,140.51,140.45,7.1199]
[1720707722842,0.85973867,140.5,140.45,7.1199]
[1720707723066,3.66136606,140.56,140.44,17.8011]
[1720707723221,7.1158,140.54,140.44,17.8011]
[1720707723428,0.85973867,140.53,140.44,17.8011]
[1720707723640,7.117,140.51,140.44,17.8011]
[1720707723829,0.85973867,140.5,140.44,17.8011]
[1720707724045,7.1168,140.52,140.44,17.8011]
[1720707724347,0.85973867,140.51,140.44,17.8011]
[1720707724649,0.85973867,140.55,140.47,17.797]
[1720707724817,7.97553867,140.54,140.48,7.118]
[1720707725249,0.85973867,140.54,140.41,7.24758608]
[1720707725427,7.24737148,140.57,140.46,7.1193]
[1720707725428,7.1167,140.52,140.46,7.1193]
[1720707725633,7.97663867,140.51,140.45,7.1199]
[1720707725817,7.1164,140.52,140.46,7.1193]
[1720707726023,7.97673867,140.51,140.46,7.1194]
[1720707726222,7.1163,140.53,140.47,17.7973]
[1720707726428,7.1154,140.54,140.47,17.7973]
[1720707726627,0.85973867,140.53,140.47,17.7973]
[1720707726861,7.1164,140.53,140.47,17.7973]
[1720707727038,7.97653867,140.52,140.47,17.7973]
[1720707727342,0.85973867,140.56,140.5,7.1173]
[1720707727544,7.97453867,140.56,140.5,7.1173]
[1720707727844,7.1155,140.54,140.46,100.0]
[1720707728050,7.1149,140.55,140.5,7.1174]
[1720707728255,0.85973867,140.54,140.45,17.7996]
[1720707728545,7.1173,140.51,140.46,7.1193]
[1720707728857,0.85973867,140.5,140.46,7.1193]
[1720707729245,7.1171,140.51,140.46,7.1193]
[1720707729536,0.85973867,140.5,140.45,24.9194]
[1720707729967,7.97723867,140.5,140.45,24.9194]
[1720707730147,0.85973867,140.5,140.45,17.7996]
[1720707730322,7.1173,140.51,140.45,24.9195]
[1720707730595,7.97733867,140.5,140.45,17.7996]
[1720707730760,0.85973867,140.5,140.41,17.8045]
[1720707731053,7.1189,140.47,140.42,7.1212]
[1720707731219,0.85973867,140.49,140.41,17.8045]
[1720707734032,22.5113,140.5,140.46,7.119]
[1720707734457,7.1185,140.48,140.44,17.8003]
[1720707734658,7.97803867,140.49,140.44,24.9207]
[1720707734865,0.85973867,140.49,140.44,24.9207]
[1720707735064,0.85973867,140.49,140.45,7.1198]
[1720707735234,0.85973867,140.49,140.4,17.8055]
[1720707735434,0.85973867,140.49,140.39,100.0]
[1720707735658,0.85973867,140.49,140.44,7.1199]
[1720707735856,0.85973867,140.49,140.42,17.8026]
[1720707736068,0.85973867,140.49,140.45,7.1198]
[1720707736251,7.97773867,140.49,140.44,7.1204]
[1720707736578,0.85973867,140.49,140.44,7.1204]
[1720707736870,7.97773867,140.49,140.44,7.1204]
[1720707737053,0.85973867,140.49,140.44,7.1204]
[1720707737254,0.85973867,140.49,140.42,17.8026]
[1720707737855,0.85973867,140.49,140.46,7.1194]
[1720707738053,7.97713867,140.5,140.45,24.919]
[1720707738689,0.85973867,140.5,140.46,7.1194]
[1720707738971,0.85973867,140.52,140.46,0.64882099]
[1720707739177,0.85973867,140.51,140.48,7.1183]
[1720707739350,0.85973867,140.51,140.45,17.7994]
[1720707739675,0.85973867,140.5,140.46,7.1193]
[1720707739849,7.97603867,140.53,140.48,7.1183]
[1720707740043,0.85973867,140.53,140.46,17.798]
[1720707740248,7.97593867,140.53,140.47,7.1187]
[1720707740457,7.97593867,140.53,140.39,100.0]
[1720707740458,0.85973867,140.53,140.46,17.798]
[1720707740643,0.85973867,140.53,140.46,24.9171]
[1720707740644,7.1173,140.51,140.46,24.9171]
[1720707740848,0.85973867,140.53,140.49,17.7947]
[1720707741065,0.85973867,140.56,140.53,7.1158]
[1720707741241,0.85973867,140.56,140.51,17.7915]
[1720707741641,0.85973867,140.56,140.49,7.1175]
[1720707741642,7.1155,140.54,140.49,7.1175]
[1720707741867,0.85973867,140.53,140.48,17.7953]
[1720707742066,0.85973867,140.56,140.48,17.7953]
[1720707742443,0.85973867,140.56,140.46,6.2709]
[1720707742444,0.85973867,140.56,140.5,17.7923]
[1720707743679,7.1155,140.54,140.49,24.912]
[1720707743843,0.85973867,140.53,140.43,35.6049]
[1720707744048,7.1166,140.52,140.47,7.1186]
[1720707744249,7.116,140.53,140.48,7.1183]
[1720707744465,0.85973867,140.52,140.48,7.1183]
[1720707744663,0.85973867,140.52,140.46,17.7982]
[1720707744865,7.97703867,140.51,140.46,24.9175]
[1720707745042,7.1165,140.52,140.46,17.7982]
[1720707745246,7.1165,140.52,140.47,7.1188]
[1720707745448,0.85973867,140.51,140.47,7.1188]
[1720707745950,7.116,140.53,140.48,7.1184]
[1720707746252,0.85973867,140.52,140.49,7.1179]
[1720707746461,7.97523867,140.54,140.49,7.1179]
[1720707746778,7.1159,140.53,140.48,24.9138]
[1720707746958,0.85973867,140.52,140.48,24.9138]
[1720707747273,7.97453867,140.56,140.5,17.7928]
[1720707747462,0.85973867,140.56,140.5,17.7928]
[1720707747662,7.1149,140.55,140.5,17.7928]
[1720707747875,0.85973867,140.56,140.52,7.1161]
[1720707748186,7.97493867,140.55,140.47,17.7968]
[1720707748470,7.1155,140.54,140.49,7.1175]
[1720707748856,7.1156,140.54,140.49,24.9122]
[1720707749249,0.85973867,140.56,140.5,8.34021454]
[1720707749468,7.1153,140.55,140.5,8.34021454]
[1720707749661,0.85973867,140.54,140.5,8.34021454]
[1720707749869,0.85973867,140.55,140.52,7.1161]
[1720707750079,7.1134,140.58,140.52,1.22237961]
[1720707750266,0.85973867,140.57,140.53,24.9046]
[1720707750589,0.85973867,140.57,140.54,7.115]
[1720707750756,7.97223867,140.6,140.55,8.33639713]
[1720707750952,7.1132,140.59,140.53,17.7891]
[1720707751266,0.85973867,140.58,140.54,7.115]
[1720707751668,7.97313867,140.58,140.53,18.28298476]
[1720707751980,7.1134,140.58,140.53,25.39868476]
[1720707752182,7.1134,140.58,140.54,7.1153]
[1720707752383,0.85973867,140.57,140.53,24.9049]
[1720707752547,7.97373867,140.57,140.52,7.1162]
[1720707752747,7.1144,140.56,140.52,7.1162]
[1720707752962,0.85973867,140.55,140.46,7.119]
[1720707753156,0.85973867,140.54,140.47,7.1186]
[1720707753362,7.1164,140.52,140.47,7.1186]
[1720707753558,6.6543,140.54,140.49,17.794]
[1720707753863,6.6543,140.54,140.5,7.1172]
[1720707754065,7.1141,140.57,140.52,7.1163]
[1720707754266,9.07415511,140.58,140.51,17.7918]
[1720707754468,7.1151,140.55,140.51,17.7918]
[1720707754668,0.85973867,140.54,140.5,7.1174]
[1720707754975,0.85973867,140.54,140.4,107.23801356]
[1720707754976,7.1159,140.53,140.49,17.7943]
[1720707755283,0.85973867,140.52,140.49,17.7943]
[1720707755450,7.1174,140.5,140.46,17.7978]
[1720707755653,53.7771462,140.58,140.4,7.23801356]
[1720707755654,7.97773867,140.49,140.43,17.8022]
[1720707755872,16.4198,140.52,140.45,7.1199]
[1720707756075,7.1185,140.48,140.43,24.9229]
[1720707756281,0.85973867,140.51,140.44,7.1202]
[1720707756460,0.85973867,140.51,140.43,24.923]
[1720707756664,0.85973867,140.51,140.49,7.1179]
[1720707756851,16.4198,140.52,140.49,7.1175]
[1720707756852,0.85973867,140.52,140.49,7.1175]
[1720707757052,7.20913867,140.53,140.48,7.118]
[1720707757257,6.3494,140.53,140.47,17.7964]
[1720707757477,6.3494,140.53,140.5,17.7932]
[1720707757650,18.35700462,140.56,140.44,100.0]
[1720707757651,15.4972,140.56,140.44,221.35]
[1720707757851,0.85973867,140.6,140.52,17.7903]
[1720707758263,7.97213867,140.6,140.55,7.1148]
[1720707758597,21.6059,140.61,140.56,17.7851]
[1720707758598,28.7178,140.61,140.56,17.7851]
[1720707758792,32.82111764,140.65,140.52,100.0]
[1720707758959,0.85973867,140.64,140.53,45.17]
[1720707759284,0.85973867,140.64,140.59,7.1124]
[1720707759477,0.85973867,140.64,140.58,17.7827]
[1720707759478,7.1108,140.63,140.58,17.7827]
[1720707760086,0.85973867,140.62,140.55,17.7867]
[1720707760299,7.1129,140.59,140.54,7.115]
[1720707760585,7.1129,140.59,140.44,35.6012]
[1720707760586,6.6099,140.56,140.44,35.6012]
[1720707760897,6.6099,140.56,140.48,17.7951]
[1720707760898,7.46963867,140.56,140.48,17.7951]
[1720707761189,14.58413867,140.56,140.5,7.1172]
[1720707761388,14.58413867,140.56,140.48,17.7951]
[1720707761389,13.7244,140.56,140.48,17.7951]
[1720707761676,7.115,140.55,140.48,17.7951]
[1720707761878,7.46963867,140.56,140.52,7.1163]
[1720707761879,6.6099,140.56,140.52,7.1163]
[1720707762076,6.6099,140.56,140.5,17.7925]
[1720707762077,6.6099,140.56,140.53,7.1157]
[1720707762263,7.1131,140.59,140.54,7.1151]
[1720707762474,7.23713867,140.6,140.53,17.7893]
[1720707762672,6.3774,140.6,140.53,17.7893]
[1720707762855,0.85973867,140.62,140.53,39.8693]
[1720707763182,7.97103867,140.63,140.58,7.1131]
[1720707763384,15.70941764,140.66,140.59,0.64674096]
[1720707763385,7.96973867,140.65,140.59,0.64674096]
[1720707763563,0.85973867,140.64,140.54,17.7882]
[1720707763771,7.1117,140.62,140.54,17.7882]
[1720707763958,0.85973867,140.64,140.57,7.1137]
[1720707764154,0.85973867,140.64,140.53,100.0]
[1720707764155,7.96963867,140.65,140.6,7.1122]
[1720707764396,7.1112,140.63,140.58,17.7825]
[1720707764691,7.1123,140.61,140.55,24.9014]
[1720707764889,7.1123,140.61,140.56,7.1142]
[1720707765076,7.1114,140.62,140.56,7.1142]
[1720707765283,7.1107,140.64,140.59,7.1127]
[1720707765494,7.111,140.63,140.57,17.7838]
[1720707765992,7.111,140.63,140.57,24.8976]
[1720707766370,6.431,140.66,140.57,17.7838]
[1720707766779,0.85973867,140.65,140.57,17.7838]
[1720707767081,7.1109,140.63,140.58,7.1132]
[1720707767267,0.85973867,140.65,140.57,17.7838]
[1720707767469,14.40043867,140.66,140.59,17.7815]
[1720707767687,7.1101,140.65,140.59,24.8939]
[1720707767895,6.431,140.66,140.59,17.7815]
[1720707768083,7.96793867,140.69,140.62,17.7779]
[1720707768290,7.96793867,140.69,140.63,7.1107]
[1720707768506,6.1806,140.7,140.64,7.1102]
[1720707768507,7.04033867,140.7,140.64,7.1102]
[1720707768677,13.2879,140.7,140.65,7.1095]
[1720707768873,13.2879,140.7,140.62,17.7779]
[1720707769079,7.04033867,140.7,140.63,45.0]
[1720707769286,7.04033867,140.7,140.62,17.7779]
[1720707769287,14.14803867,140.7,140.64,7.1102]
[1720707769486,7.1078,140.69,140.64,7.1102]
[1720707769883,13.2879,140.7,140.65,7.1096]
[1720707770090,7.1078,140.69,140.64,17.7749]
[1720707770283,7.1078,140.69,140.64,24.8851]
[1720707770691,7.1078,140.69,140.65,1.41703413]
[1720707770874,0.85973867,140.73,140.65,1.41703413]
[1720707771075,7.1063,140.72,140.66,7.1089]
[1720707771277,15.93531742,140.75,140.67,1.41683266]
[1720707771582,6.5469,140.75,140.68,19.18663706]
[1720707771782,0.85973867,140.74,140.68,17.7699]
[1720707771995,7.1062,140.73,140.68,17.7699]
[1720707772187,7.1064,140.72,140.67,7.1084]
[1720707772491,7.1056,140.74,140.65,45.0]
[1720707772695,7.1056,140.74,140.68,24.879]
[1720707772885,7.1056,140.74,140.69,7.1076]
[1720707773117,7.1058,140.73,140.68,17.7708]
[1720707773403,0.85973867,140.76,140.65,45.0]
[1720707773404,7.1052,140.75,140.69,7.1077]
[1720707773574,7.1052,140.75,140.69,7.1078]
[1720707773772,7.1052,140.75,140.65,145.0]
[1720707773773,9.38841742,140.78,140.7,17.7674]
[1720707773998,7.1043,140.76,140.71,7.1064]
[1720707774201,7.1038,140.77,140.72,7.1061]
[1720707774406,7.1033,140.78,140.72,7.1061]
[1720707774898,7.1039,140.77,140.72,7.1061]
[1720707775102,7.1039,140.77,140.71,7.1066]
[1720707775303,6.417,140.79,140.73,7.1055]
[1720707775629,6.417,140.79,140.72,24.8708]
[1720707775800,6.417,140.79,140.72,17.7649]
[1720707775801,0.85973867,140.78,140.72,17.7649]
[1720707776102,7.1052,140.75,140.7,7.1071]
[1720707776404,7.1053,140.74,140.69,24.8767]
[1720707776617,7.1059,140.73,140.64,35.5507]
[1720707776822,0.85973867,140.73,140.65,17.7743]
[1720707777098,7.1082,140.69,140.6,35.5612]
[1720707777296,7.1074,140.7,140.6,35.5612]
[1720707777502,7.108,140.69,140.63,7.1107]
[1720707777687,7.1085,140.68,140.63,7.1107]
[1720707777892,24.2698,140.71,140.62,17.7775]
[1720707778081,7.1086,140.68,140.62,24.8884]
[1720707778486,0.85973867,140.67,140.54,141.586]
[1720707778686,7.1107,140.64,140.59,24.8942]
[1720707778882,7.1099,140.65,140.59,24.8942]
[1720707779107,7.1092,140.67,140.59,17.7815]
[1720707779311,7.1092,140.67,140.62,7.1113]
[1720707779512,7.1092,140.67,140.56,130.0]
[1720707779513,0.85973867,140.7,140.64,7.1102]
[1720707779813,0.85973867,140.7,140.48,100.0]
[1720707779814,7.1154,140.55,140.48,100.0]
[1720707780005,7.1158,140.54,140.46,17.7979]
[1720707780199,7.1158,140.54,140.46,24.9168]
[1720707780388,0.85973867,140.58,140.48,17.7949]
[1720707780711,7.1148,140.56,140.5,30.0]
[1720707780915,0.85973867,140.55,140.47,17.7962]
[1720707781093,18.64313867,140.59,140.47,17.7962]
[1720707781302,7.115,140.55,140.47,17.7962]
[1720707781616,7.1166,140.52,140.47,17.7962]
[1720707781791,6.3562,140.57,140.41,35.6095]
[1720707781989,7.116,140.53,140.47,17.7968]
[1720707782213,0.85973867,140.56,140.47,17.7968]
[1720707783004,7.1163,140.53,140.47,24.9155]
[1720707783390,0.85973867,140.52,140.45,7.1196]
[1720707783591,0.85973867,140.52,140.43,24.9217]
[1720707783791,7.1171,140.51,140.43,17.8012]
[1720707784204,7.1178,140.5,140.44,7.1204]
[1720707784405,7.1169,140.52,140.45,7.1198]
[1720707784711,0.85973867,140.55,140.48,7.1183]
[1720707785010,0.85973867,140.54,140.5,7.1174]
[1720707785216,7.1152,140.55,140.49,7.1179]
[1720707785387,17.74331088,140.57,140.48,17.7949]
[1720707785590,7.1138,140.58,140.53,7.1158]
[1720707785795,7.1129,140.59,140.53,7.1158]
[1720707786006,11.38711088,140.61,140.49,35.5885]
[1720707786320,12.24684955,140.61,140.56,7.1139]
[1720707786612,0.85973867,140.6,140.52,17.7907]
[1720707786819,0.85973867,140.6,140.55,7.1144]
[1720707787007,11.38711088,140.61,140.53,35.5784]
[1720707787198,11.38711088,140.61,140.59,7.1127]
[1720707787404,7.97023867,140.64,140.58,0.74534242]
[1720707787405,0.85973867,140.64,140.58,0.74534242]
[1720707787594,18.49811088,140.63,140.57,17.7846]
[1720707787793,18.49801088,140.63,140.57,17.7846]
[1720707788105,11.38711088,140.63,140.57,17.7846]
[1720707788299,18.49811088,140.63,140.57,24.8981]
[1720707788503,11.38711088,140.63,140.58,7.113]
[1720707789102,11.38711088,140.63,140.57,24.8983]
[1720707789407,7.1119,140.61,140.55,7.1144]
[1720707789595,0.85973867,140.6,140.55,7.1144]
[1720707789798,0.85973867,140.61,140.57,7.1137]
[1720707790297,18.49801088,140.63,140.58,7.1132]
[1720707790511,7.97113867,140.62,140.56,17.7853]
[1720707790689,2.80981137,140.61,140.5,45.0]
[1720707791007,0.85973867,140.6,140.57,7.1138]
[1720707791210,7.97213867,140.6,140.56,17.7852]
[1720707791419,12.24684955,140.6,140.5,145.0]
[1720707791622,12.24684955,140.6,140.53,17.7894]
[1720707792009,19.35934955,140.6,140.55,7.1145]
[1720707792202,11.38711088,140.6,140.56,7.1143]
[1720707792394,7.1113,140.62,140.57,7.1137]
[1720707792596,7.1133,140.59,140.54,7.1152]
[1720707792890,7.1125,140.6,140.55,7.1148]
[1720707793088,12.24684955,140.61,140.57,7.1135]
[1720707793322,11.38711088,140.61,140.56,17.785]
[1720707793493,0.85973867,140.6,140.54,7.1149]
[1720707793694,0.85973867,140.6,140.53,17.7891]
[1720707794097,11.38711088,140.61,140.55,17.7863]
[1720707794421,0.85973867,140.6,140.55,17.7863]
[1720707794601,0.85973867,140.65,140.57,17.784]
[1720707794804,0.85973867,140.64,140.5,100.0]
[1720707795110,7.1114,140.62,140.57,7.1134]
[1720707795309,7.1114,140.62,140.58,17.783]
[1720707795509,7.111,140.63,140.58,24.8963]
[1720707795694,9.31012373,140.66,140.55,17.7867]
[1720707795695,0.85973867,140.62,140.55,17.7867]
[1720707795896,18.63483867,140.65,140.55,24.9011]
[1720707796122,22.0401,140.58,140.48,17.7949]
[1720707796422,7.1165,140.52,140.47,7.1185]
[1720707796603,7.1168,140.52,140.47,7.1185]
[1720707796921,7.1158,140.54,140.48,7.1182]
[1720707797120,0.85973867,140.56,140.47,17.7968]
[1720707797334,7.1154,140.54,140.47,17.7968]
[1720707797618,7.97443867,140.56,140.49,17.794]
[1720707797819,7.1149,140.55,140.51,7.1169]
[1720707798028,0.85973867,140.54,140.43,6.3059]
[1720707798198,7.1161,140.53,140.43,6.3059]
[1720707798388,7.1171,140.51,140.46,17.7974]
[1720707798592,0.85973867,140.54,140.48,7.1182]
[1720707799014,0.85973867,140.57,140.48,7.1182]
[1720707799210,7.1155,140.54,140.49,7.1178]
[1720707799407,7.1159,140.53,140.48,24.9136]
[1720707799598,7.1164,140.52,140.47,7.1189]
[1720707799795,17.7866,140.56,140.45,17.7991]
[1720707799796,7.117,140.51,140.46,107.1193]
[1720707800006,7.1165,140.52,140.47,7.1189]
[1720707800218,7.1159,140.53,140.48,7.1183]